Cogmind - Beta 9.6 @@@ ROGUE MODE // 2020.06.12 @ 22:46:19 Player: Dhoby_Ghaut Result: Self-destructed Performance ------------- Evolutions (3) 1500 Regions Visited (8) 1600 Robots Destroyed (60) 300 Value Destroyed (1303) 1303 Prototype IDs (29) 580 Alien Tech Used (0) 0 Bonus (300) 300 TOTAL SCORE: 5583 Bonus ------- Aligned with FarCom 300 Cogmind --------- Core Integrity 584/700 Matter 0/300 Energy 160/160 System Corruption 22% Temperature Cool (0) Movement Rolling (120) Ox2 Location -7/Factory Parts ------- > --- POWER (1) -------- Light Nuclear Core > --- PROPULSION (3) --- Armored Huge Wheel > --- UTILITY (5) ------ Improved Heat Sink Large Storage Unit Large Storage Unit Large Storage Unit Improved Light Armor Plating > --- WEAPON (4) ------- Heavy Laser > --- INVENTORY (22) --- Ion Engine Ion Engine Improved Deuterium Engine Titanium Leg Titanium Leg Titanium Leg Titanium Leg Titanium Leg Armored Wheel Energy Well (500) Energy Well (500) Long-range Sensor Array Improved Terrain Scanner Energy Filter Improved Light Armor Plating PSU Rigger Shock Rifle Improved EM Pulse Cannon Heavy Assault Rifle Enhanced Autogun Rocket Launcher Improved Grenade Launcher Peak State ------------ > --- POWER ------------ Light Nuclear Core > --- PROPULSION ------- Wheel Armored Huge Wheel > --- UTILITY ---------- Improved Heat Sink Large Storage Unit Large Storage Unit Large Storage Unit PSU Rigger > --- WEAPON ----------- Shock Rifle Arc Projector Heavy Laser Enhanced Autogun > --- INVENTORY -------- Ion Engine Ion Engine Ion Engine Light Nuclear Core Improved Deuterium Engine Titanium Leg Titanium Leg Titanium Leg Titanium Leg Compact Wheel Armored Wheel Improved Terrain Scanner Energy Filter Improved Light Armor Plating Improved Light Armor Plating Heavy Assault Rifle Heavy Assault Rifle High-powered Shotgun Rocket Launcher Improved Grenade Launcher Katana [Rating: 46] Favorites ----------- Power Light Nuclear Core Engine Light Ion Engine Power Core Light Nuclear Core Propulsion Wheel Wheel Wheel Utility Large Storage Unit Device Improved Heat Sink Storage Large Storage Unit Processor Advanced Visual Processing Unit Protection Improved Light Armor Plating Weapon Heavy Assault Rifle Energy Gun Heavy Laser Ballistic Gun Heavy Assault Rifle Launcher Improved Grenade Launcher Slashing Weapon Katana Build | -11 -10 -10 -9 -9 -9 -8 -8 -7 ------- Run | Scr Mat Min Mat Min Exi Min Mat Fac Slots Evolved 6 | . . . 2 . . . 2 2 Power . | . . . . . . . . . Propulsion 1 | . . . . . . . . 1 Utility 3 | . . . . . . . 2 1 Weapon 2 | . . . 2 . . . . . Parts Attached 64 | 7 13 7 4 4 1 . 21 7 Power 5 | 1 1 1 . . . . 1 1 Engine 3 | 1 1 1 . . . . . . Core 2 | . . . . . . . 1 1 Reactor . | . . . . . . . . . Propulsion 15 | 2 4 4 . 2 1 . 1 1 Treads . | . . . . . . . . . Leg . | . . . . . . . . . Wheel 15 | 2 4 4 . 2 1 . 1 1 Hover . | . . . . . . . . . Flight . | . . . . . . . . . Utility 14 | 2 2 . . . . . 7 3 Device 3 | . . . . . . . 1 2 Storage 6 | 2 2 . . . . . 2 . Processor 1 | . . . . . . . 1 . Hackware . | . . . . . . . . . Protection 4 | . . . . . . . 3 1 Artifact . | . . . . . . . . . Weapon 30 | 2 6 2 4 2 . . 12 2 Energy Gun 8 | 2 2 . 1 . . . 2 1 Energy Cannon . | . . . . . . . . . Ballistic Gun 17 | . 4 2 3 1 . . 7 . Ballistic Cannon . | . . . . . . . . . Launcher 2 | . . . . 1 . . 1 . Special Weapon . | . . . . . . . . . Impact Weapon . | . . . . . . . . . Slashing Weapon 3 | . . . . . . . 2 1 Piercing Weapon . | . . . . . . . . . Special Melee Weapon . | . . . . . . . . . Unidentified Prototypes 2 | . . . 1 . . . 1 . Parts Lost 20 | . 4 4 . 1 . . 7 4 Power 2 | . . 1 . . . . 1 . Propulsion 6 | . 2 1 . 1 . . 1 1 Utility 1 | . . . . . . . 1 . Weapon 11 | . 2 2 . . . . 4 3 Highest Loss Streak 7 | . 3 3 . 1 . . 7 3 Average Slot Usage (%) 89 | . 99 95 100 99 100 100 97 74 Engine 6 | . 14 11 11 11 11 11 5 . Core 3 | . . . . . . . 3 7 Wheel 17 | . 28 28 22 21 22 22 17 9 Device 3 | . . . . . . . 2 7 Storage 23 | . 28 28 22 22 22 22 22 23 Protection 3 | . . . . . . . 9 6 Energy Gun 12 | . 16 . 6 11 11 11 10 16 Ballistic Gun 16 | . 10 26 37 32 33 33 22 1 Naked Turns . | . . . . . . . . . Heaviest Build 71 | 17 41 41 47 47 47 47 69 71 Greatest Support 38 | 20 20 32 20 20 26 26 26 38 Greatest Overweight (x) 2 | 2 2 2 2 2 2 1 2 2 Average Overweight (x) 1 | . . 1 2 2 1 1 1 1 Largest Inventory Capacity 22 | 8 16 16 16 16 16 16 22 22 Average Capacity 18 | 5 14 16 16 16 16 16 19 22 Most Carried 22 | 4 16 16 16 16 16 16 17 22 Average Carried 16 | 1 9 14 15 15 15 15 14 21 Final Capacity 22 | 8 16 16 16 16 16 16 22 22 Final Carried 22 | 4 16 14 16 16 16 16 17 22 Class Distribution -------------------- 31% | Mutant 28% | Hauler-Mutant 20% | Gunner 10% | Hauler-Skirmisher 5% | Scavenger-Skirmisher Dominant Class ---------------- Mutant | -10/Materials Mutant | -10/Mines Gunner | -9/Materials Gunner | -9/Mines Gunner | -9/Exiles Mutant | -8/Mines Mutant | -8/Materials Hauler-Mutant | -7/Factory Resources | -11 -10 -10 -9 -9 -9 -8 -8 -7 ----------- Run | Scr Mat Min Mat Min Exi Min Mat Fac Matter Collected 1224 | 226 172 179 81 293 . 10 213 50 Remotely . | . . . . . . . . . Salvage Created 1909 | 78 325 229 150 584 . 41 452 50 Parts 124 | 5 33 10 9 33 . 7 21 6 Haulers Intercepted 1 | . 1 . . . . . . . Recyclers Shooed 5 | 1 . 3 . . . 1 . . Parts Field Recycled . | . . . . . . . . . Retrieved Matter . | . . . . . . . . . Parts Self-Destructed . | . . . . . . . . . Prevented . | . . . . . . . . . Kills | -11 -10 -10 -9 -9 -9 -8 -8 -7 ------- Run | Scr Mat Min Mat Min Exi Min Mat Fac Combat Hostiles Destroyed 40 | . 11 4 2 13 . . 9 1 Guns 33 | . 11 4 2 10 . . 5 1 AOE 7 | . . . . 3 . . 4 . Classes Destroyed 12 | 2 5 1 2 1 . . . 1 Worker 7 | . 1 1 . 4 . 1 . . Builder 3 | . 1 . . 1 . 1 . . Tunneler 2 | 1 . . . . . 1 . . Hauler 1 | . 1 . . . . . . . Recycler 6 | 1 . 2 . 1 . . 2 . Watcher 1 | . . . 1 . . . . . Swarmer 15 | . 8 3 . 4 . . . . Grunt 17 | . 3 . . 8 . . 6 . Duelist 1 | . . . . 1 . . . . Sentry 5 | . . . 2 . . . 3 . Programmer 1 | . . . . . . . . 1 Assembled 1 | . . 1 . . . . . . Best Kill Streak 10 | 2 4 3 1 10 . 2 6 1 Combat Bots Only 6 | . 4 2 1 4 . . 6 1 Max Kills in Single Turn 3 | 1 1 1 1 3 . 1 3 1 Gunslinging . | . . . . . . . . . Exploded 3 | . . . . 2 . . 3 . Melee . | . . . . . . . . . Uniques/NPCs Destroyed . | . . . . . . . . . Combat | -11 -10 -10 -9 -9 -9 -8 -8 -7 -------- Run | Scr Mat Min Mat Min Exi Min Mat Fac Damage Taken 3098 | . 512 574 44 329 . . 962 677 Core 420 | . 103 107 . 7 . . 87 116 Absorbed by Shields . | . . . . . . . . . Core Remaining (%) 74 | 100 . 16 . . . 98 84 . Volleys Fired 147 | 4 47 31 7 24 . 5 24 5 Largest 4 | 2 2 2 4 4 . 1 4 3 Hottest 174 | 100 100 46 114 121 . 45 119 174 Shots Fired 368 | 8 94 62 27 94 . 5 61 17 Gun 363 | 8 94 62 27 92 . 5 58 17 Cannon . | . . . . . . . . . Launcher 5 | . . . . 2 . . 3 . Special . | . . . . . . . . . Kinetic 242 | . 41 62 23 70 . . 46 . Thermal 68 | 8 53 . . . . . 1 6 Explosive 5 | . . . . 2 . . 3 . Electromagnetic 53 | . . . 4 22 . 5 11 11 Robot Hit Streak 11 | 4 11 4 3 9 . 4 7 6 Robot Miss Streak 6 | 2 6 5 3 5 . 5 6 4 Penetration Max . | . . . . . . . . . Secondary Targets 4 | . . . . 3 . . 1 . Max Gunslinging Chain 1 | . . . . 1 . . 1 . Shots Hit Robots 198 | 5 48 31 11 49 . 3 42 9 Core Hits 109 | 3 21 17 5 28 . 3 28 4 Critical Hits 1 | . . . 1 . . . . . Critical Kills . | . . . . . . . . . Critical Parts Destroyed . | . . . . . . . . . Melee Attacks 25 | . . . . . . . 7 18 Impact . | . . . . . . . . . Slashing 25 | . . . . . . . 7 18 Piercing . | . . . . . . . . . Sneak Attacks . | . . . . . . . . . Combat Hostiles . | . . . . . . . . . Follow-up Attacks . | . . . . . . . . . Damage Inflicted 3386 | 60 491 237 145 1223 . 47 1103 80 Guns 2429 | 60 491 237 145 872 . 47 497 80 Cannons . | . . . . . . . . . Explosions 921 | . . . . 351 . . 570 . Melee 36 | . . . . . . . 36 . Ramming . | . . . . . . . . . Kinetic 1400 | . 172 237 106 507 . . 378 . Thermal 707 | 60 319 . . 162 . . 102 64 Explosive 657 | . . . . 189 . . 468 . Electromagnetic 586 | . . . 39 365 . 47 119 16 Impact . | . . . . . . . . . Slashing 36 | . . . . . . . 36 . Piercing . | . . . . . . . . . Highest Corruption 22 | . . . 2 2 2 2 . 22 Average Corruption 11 | . . . 1 2 2 2 . 16 Corruption Purged . | . . . . . . . . . Effects 86 | . . . 1 8 4 2 . 71 Message Errors 25 | . . . 1 2 1 . . 21 Matter Fused 18 | . . . . . . . . 18 Heat Flow Errors 13 | . . . . 2 1 1 . 9 Energy Discharges 9 | . . . . 1 1 . . 7 Data Loss (minor) 12 | . . . . 2 1 1 . 8 Data Loss (major) 4 | . . . . . . . . 4 Misfires 2 | . . . . . . . . 2 Alerts 1 | . . . . . . . . 1 Targeting Errors 2 | . . . . 1 . . . 1 Overload Shots . | . . . . . . . . . Overflow Damage 10 | . . . . 7 . . 3 . Projectiles . | . . . . . . . . . Explosions 9 | . . . . 7 . . 2 . Melee 1 | . . . . . . . 1 . Knockbacks . | . . . . . . . . . Impact . | . . . . . . . . . Kinetic . | . . . . . . . . . Secondary . | . . . . . . . . . Self-Inflicted Damage 186 | . . . . 122 . . 64 . Shots 7 | . . . . 4 . . 3 . Rammed . | . . . . . . . . . Targets Rammed . | . . . . . . . . . Kicked . | . . . . . . . . . Crushed . | . . . . . . . . . Highest Temperature 310 | 117 310 . 51 221 255 94 204 249 Average Temperature 79 | 53 65 . 27 89 128 48 92 92 Received Heat Transfer 663 | . 165 . 18 84 . . 396 . Siege Activations . | . . . . . . . . . Robots Corrupted . | . . . . . . . . . Combat Hostiles . | . . . . . . . . . Parts Fried 1 | . . . . 1 . . . . Impact Corruptions . | . . . . . . . . . Robots Melted . | . . . . . . . . . Combat Hostiles . | . . . . . . . . . Parts Melted . | . . . . . . . . . Heat Transferred 1401 | 185 855 . . 200 . . 50 111 Parts Sabotaged . | . . . . . . . . . Parts Stolen . | . . . . . . . . . Parts Stripped . | . . . . . . . . . Power Chain Reactions 6 | . . . . 3 . . 3 . Missiles Intercepted . | . . . . . . . . . Alert | -11 -10 -10 -9 -9 -9 -8 -8 -7 ------- Run | Scr Mat Min Mat Min Exi Min Mat Fac Peak Influence 338 | 10 224 130 164 338 . 15 243 98 Average Influence 58 | 3 72 93 85 185 . 9 76 12 Maximum Alert Level 1 | . 1 . . 1 . . 1 . Low Security (%) 94 | 100 91 100 100 60 . 100 99 100 Level 1 5 | . 8 . . 39 . . . . Level 2 . | . . . . . . . . . Level 3 . | . . . . . . . . . Level 4 . | . . . . . . . . . Level 5 . | . . . . . . . . . High Security . | . . . . . . . . . Max Security . | . . . . . . . . . Squads Dispatched 7 | . 1 . 1 . . . 2 3 Investigation 3 | . 1 . . . . . 2 . Extermination 3 | . . . . . . . . 3 Reinforcement 1 | . . . 1 . . . . . Assault . | . . . . . . . . . Garrison . | . . . . . . . . . Intercept . | . . . . . . . . . Construction Impeded . | . . . . . . . . . Haulers Reinforced . | . . . . . . . . . Stealth | -11 -10 -10 -9 -9 -9 -8 -8 -7 --------- Run | Scr Mat Min Mat Min Exi Min Mat Fac Distress Signals 5 | . 1 1 1 . . . 2 . Communications Jammed . | . . . . . . . . . Distress Signals . | . . . . . . . . . Times Spotted 81 | . 20 22 7 13 . . 17 2 Peak Tracking Total 14 | . 6 14 4 4 . . 7 2 Tactical Retreats 7 | . 3 3 . . . . 1 . Traps | -11 -10 -10 -9 -9 -9 -8 -8 -7 ------- Run | Scr Mat Min Mat Min Exi Min Mat Fac Traps Triggered 7 | . 1 . 2 . . . 1 3 Indirectly . | . . . . . . . . . Trap Hack Attempts . | . . . . . . . . . Triggered . | . . . . . . . . . Disarmed . | . . . . . . . . . Reprogrammed . | . . . . . . . . . Reused . | . . . . . . . . . Traps Extracted . | . . . . . . . . . Installed . | . . . . . . . . . Triggered . | . . . . . . . . . Power Sources Rigged 3 | . . . . . . . . 3 Exploded 3 | . . . . . 1 . 1 1 Machines | -11 -10 -10 -9 -9 -9 -8 -8 -7 ---------- Run | Scr Mat Min Mat Min Exi Min Mat Fac Machines Disabled 2 | . . . . . . . 1 1 Max in Single Turn 1 | . . . . . . . 1 1 Machines Sabotaged . | . . . . . . . . . Garrisons Compromised . | . . . . . . . . . Overloaded Fab Kills . | . . . . . . . . . Fab Network Shutdowns . | . . . . . . . . . Hacking | -11 -10 -10 -9 -9 -9 -8 -8 -7 --------- Run | Scr Mat Min Mat Min Exi Min Mat Fac Machines Accessed 13 | . 6 . . . 2 . 3 2 Terminals 9 | . 6 . . . . . 2 1 Fabricators 1 | . . . . . . . . 1 Repair Stations . | . . . . . . . . . Recycling Units . | . . . . . . . . . Scanalyzers 1 | . . . . . . . 1 . Garrison Access . | . . . . . . . . . Total Hacks 37 | . 17 . . . 2 . 15 3 Successful 22 | . 8 . . . 2 . 11 1 Failed 15 | . 9 . . . . . 4 2 Catastrophic 4 | . 2 . . . . . 2 . Database Lockouts . | . . . . . . . . . Manual 18 | . 10 . . . 1 . 7 . Terminals 29 | . 17 . . . . . 10 2 Fabricators 1 | . . . . . . . . 1 Repair Stations . | . . . . . . . . . Recycling Units . | . . . . . . . . . Scanalyzers 5 | . . . . . . . 5 . Garrison Access . | . . . . . . . . . Terminal Hacks 11 | . 5 . . . 2 . 4 . Record 1 | . . . . . 1 . . . Prototype ID Bank 2 | . 1 . . . . . 1 . Alert Level 2 | . 1 . . . . . 1 . Unreport Threat 1 | . 1 . . . . . . . Locate Traps 1 | . 1 . . . . . . . Zone Layout 3 | . 1 . . . . . 2 . EX-Prototype ID Bank 1 | . . . . . 1 . . . Fabricator Hacks 1 | . . . . . . . . 1 Build 1 | . . . . . . . . 1 Repair Station Hacks . | . . . . . . . . . Recycling Unit Hacks . | . . . . . . . . . Scanalyzer 5 | . . . . . . . 5 . Insert Component 2 | . . . . . . . 2 . Analyze 3 | . . . . . . . 3 . Garrison Access Hacks . | . . . . . . . . . Unauthorized Hacks 5 | . 3 . . . . . 2 . Terminals 5 | . 3 . . . . . 2 . Botnet 5 | . 3 . . . . . 2 . Fabricators . | . . . . . . . . . Repair Stations . | . . . . . . . . . Recycling Units . | . . . . . . . . . Scanalyzers . | . . . . . . . . . Garrison Access . | . . . . . . . . . Data Cores Recovered . | . . . . . . . . . Used . | . . . . . . . . . Hacking Detections 10 | . 6 . . . . . 2 2 Full Trace Events 1 | . . . . . . . 1 . Feedback Events . | . . . . . . . . . Feedback Blocked . | . . . . . . . . . Robot Schematics Acquired . | . . . . . . . . . Robots Built . | . . . . . . . . . Matter . | . . . . . . . . . Time . | . . . . . . . . . Total Robot Build Rating . | . . . . . . . . . Part Schematics Acquired 2 | . . . . . . . 2 . Parts Built 2 | . . . . . . . . 2 Matter 190 | . . . . . . . . 190 Time 31 | . . . . . . . . 31 Total Part Build Rating 10 | . . . . . . . . 10 Parts Repaired . | . . . . . . . . . Time . | . . . . . . . . . Parts Recycled . | . . . . . . . . . Recycled Matter . | . . . . . . . . . Retrieved Matter . | . . . . . . . . . Retrieved Components . | . . . . . . . . . Parts Scanalyzed 2 | . . . . . . . 2 . Part Schematics Acquired 2 | . . . . . . . 2 . Parts Damaged . | . . . . . . . . . Bothacking | -11 -10 -10 -9 -9 -9 -8 -8 -7 ------------ Run | Scr Mat Min Mat Min Exi Min Mat Fac Used RIF Installer . | . . . . . . . . . Robots Hacked . | . . . . . . . . . Non-combat . | . . . . . . . . . Combat . | . . . . . . . . . Robot Hacks Applied . | . . . . . . . . . Relay Couplers Released . | . . . . . . . . . Robots Rewired . | . . . . . . . . . Allies Hacked . | . . . . . . . . . Hacks Repelled . | . . . . . . . . . Allies | -11 -10 -10 -9 -9 -9 -8 -8 -7 -------- Run | Scr Mat Min Mat Min Exi Min Mat Fac Total Allies . | . . . . . . . . . Largest Group . | . . . . . . . . . Highest-Rated Group . | . . . . . . . . . Highest-Rated Ally . | . . . . . . . . . Total Orders . | . . . . . . . . . Ally Attacks . | . . . . . . . . . Total Damage . | . . . . . . . . . Kills . | . . . . . . . . . Allies Corrupted . | . . . . . . . . . Allies Melted . | . . . . . . . . . Intel | -11 -10 -10 -9 -9 -9 -8 -8 -7 ------- Run | Scr Mat Min Mat Min Exi Min Mat Fac Robot Analysis Total . | . . . . . . . . . Derelict Logs Recovered 1 | . . . . 1 . . . . Drone Launches . | . . . . . . . . . Drone Recoveries . | . . . . . . . . . Exploration | -11 -10 -10 -9 -9 -9 -8 -8 -7 ------------- Run | Scr Mat Min Mat Min Exi Min Mat Fac Turns Passed 5386 | 60 698 395 334 556 227 358 684 2074 Spaces Moved 2870 | 42 496 300 274 449 223 304 354 428 Core 5 | 5 . . . . . . . . Treads . | . . . . . . . . . Legs . | . . . . . . . . . Wheels 2865 | 37 496 300 274 449 223 304 354 428 Hover . | . . . . . . . . . Flight . | . . . . . . . . . Fastest Speed 50 | 50 80 90 100 100 100 100 100 100 Average Speed 98 | 81 88 100 100 100 100 100 105 101 Slowest Speed 150 | 150 100 120 100 100 100 100 110 110 Overloaded Moves . | . . . . . . . . . Propulsion Burnouts . | . . . . . . . . . Robots Hopped . | . . . . . . . . . Cave-ins Triggered 2 | . . . . . . . . 2 Exploration Rate (%) 42 | 3 83 40 25 74 61 61 29 8 Regions Visited 8 Branch Regions 4 Pre-discovered Areas 2 | . . . . 1 1 . . . Known Exits Taken . | . . . . . . . . . Unknown Exits Taken 8 | 1 1 1 1 1 1 1 1 . Scrap Searched 2 | . . . . 1 . 1 . . Spaces Dug 22 | . . . . . . . 6 16 Terrain Destroyed 89 | . . . . 44 . . 29 16 Melee 22 | . . . . . . . 6 16 Projectile . | . . . . . . . . . AOE 67 | . . . . 44 . . 23 . Actions | -11 -10 -10 -9 -9 -9 -8 -8 -7 --------- Run | Scr Mat Min Mat Min Exi Min Mat Fac Total 5100 | 56 672 342 320 497 227 353 602 2031 Wait 1892 | . 85 . 16 17 . 43 185 1546 Move 2861 | 41 495 299 273 448 222 303 353 427 Hop . | . . . . . . . . . Pick Up 60 | 4 19 2 11 2 2 1 6 13 Fast Attach 17 | 7 2 . 1 . . . 6 1 Attach 23 | . 4 4 2 1 1 . 7 4 Detach 8 | . 1 . . . . . 4 3 Swap 24 | . 7 3 1 3 . . 8 2 Drop 39 | . 12 3 9 2 2 1 2 8 Fire 147 | 4 47 31 7 24 . 5 24 5 Melee 25 | . . . . . . . 7 18 Ram . | . . . . . . . . . Kick . | . . . . . . . . . Crush . | . . . . . . . . . Escape Stasis 1 | . . . . . . . . 1 Rewire . | . . . . . . . . . Trap 3 | . . . . . . . . 3 Miscellaneous . | . . . . . . . . . Route ------- -11/Scrapyard -10/Materials (discovered 3 exits: [*Mat x2] / [*Min]) -10/Mines -9/Materials -9/Mines (discovered 2 exits: *Mat / *Exi) -9/Exiles -8/Mines -8/Materials -7/Factory History --------- Turn | Location | Event 24 | -11/Scrapyard | Discovered new exit (range 16) 61 | -11/Scrapyard | Entered Materials 305 | -10/Materials | Build established: Mutant 421 | -10/Materials | Discovered new exit (range 19) 454 | -10/Materials | Discovered new exit (range 8) 616 | -10/Materials | Lost 3 parts (2n1w) 649 | -10/Materials | Discovered new exit (range 15) 759 | -10/Materials | Entered Mines 794 | -10/Mines | Met a Derelict bent on vengeance 930 | -10/Mines | Core integrity fell below 50% 945 | -10/Mines | Discovered new exit (range 10) 977 | -10/Mines | Assembled infested the area 1029 | -10/Mines | Lost 3 parts (1p2w) 1068 | -10/Mines | Core integrity fell below 20% 1154 | -10/Mines | Entered Materials 1154 | -9/Materials | Evolved 2 slots: Weapon x2 1445 | -9/Materials | Build established: Gunner 1473 | -9/Materials | Discovered new exit (range 16) 1488 | -9/Materials | Entered Mines 1755 | -9/Mines | Discovered new exit (range 7) 1927 | -9/Mines | Received a Rocket Launcher from a helpful Derelict 2022 | -9/Mines | Learned location of Storage (-8) 2040 | -9/Mines | Deemed a non-threat by the Exiles lab entrance 2040 | -9/Mines | Discovered new exit (range 5) 2044 | -9/Mines | Entered Exiles 2072 | -9/Exiles | Met 8R-AWN 2089 | -9/Exiles | Met EX-HEX 2121 | -9/Exiles | Met EX-BIN 2132 | -9/Exiles | Aligned with FarCom system 2133 | -9/Exiles | Given EX-Vault access code 2159 | -9/Exiles | Opened EX-Vault 2167 | -9/Exiles | Found PSU Rigger 2191 | -9/Exiles | Warned to stay clear of 0b10 Research branches 2202 | -9/Exiles | Exiles lab attacked by MAIN.C 2230 | -9/Exiles | Learned location of Zion (-6) 2263 | -9/Exiles | Discovered new exit (range 10) 2271 | -9/Exiles | Left Exiles lab with PSU Rigger 2271 | -9/Exiles | Entered Mines 2617 | -8/Mines | Discovered new exit (range 5) 2629 | -8/Mines | Entered Materials 2629 | -8/Materials | Evolved 2 slots: Utility x2 2678 | -8/Materials | Build established: Mutant 3073 | -8/Materials | Lost 7 parts (1p1n1u4w) 3310 | -8/Materials | Discovered new exit (range 3) 3313 | -8/Materials | Entered Factory 3313 | -7/Factory | Evolved 2 slots: Propulsion x1, Utility x1 3594 | -7/Factory | Fabricated Energy Well (x2) 3696 | -7/Factory | Build established: Hauler-Skirmisher 3905 | -7/Factory | Crushed by falling debris 3906 | -7/Factory | System corruption reached 10% 3936 | -7/Factory | Lost 3 parts (1n2w) 4195 | -7/Factory | Build established: Hauler-Mutant 5224 | -7/Factory | Crushed by falling debris 5387 | -7/Factory | Self-destructed Last Messages --------------- 05017_ System corrupted: Component data lost. 05086_ ><5UP5DBQ,:NJXSI&RF#NBKEAYWZQQVKDQM 05120_ System corrupted: Component data lost. 05139_ System corrupted: Matter fused (-5). 05154_ System corrupted: Heat flow error (+181). 05171_ System corrupted: Matter fused (-7). 05191_ Y0C0>C/IAPHTODOU,MTJKN TGU